[Event "85th Tata Steel Challengers 2023"]
[Site "Wijk aan Zee"]
[Date "2023.01.27"]
[Round "11.4"]
[White "Beerdsen, Thomas"]
[Black "Ivic, Velimir"]
[Result "1-0"]
[ECO "B31"]
[WhiteElo "2515"]
[BlackElo "2585"]
[Annotator "TA"]
[PlyCount "109"]
[EventDate "2023.01.10"]
[EventType "tourn"]
[EventCountry "NED"]
[SourceTitle "playchess.com"]
[Source "ChessBase"]
[SourceQuality "1"]
[TimeControl "40/6000+30:30/3000+30:900+30"]

{[%evp 19,109,12,18,0,0,0,0,0,0,0,0,-27,-19,-17,-35,-11,0,-49,-39,-50,6,33,17,27,27,0,21,10,10,14,7,-8,-14,-23,84,0,24,-2,0,0,37,47,134,130,153,41,39,25,45,-136,-130,-147,-2,-107,16,41,137,0,0,0,148,131,113,67,370,223,1732,223,223,222,222,222,222,222,2564,458,29988,29989,29990,488,488,488,488,488,889,704,29982,29983,29982,29981,29961,2642]} 1. e4 {[%emt 0:00:05]} c5 {[%emt 0:00:19]} 2. Nf3 {[%emt 0:00:07]} Nc6 {[%emt 0:00:14]} 3. Bb5 {[%emt 0:00:11]} g6 {[%emt 0:00:35]} 4. O-O {[%emt 0:00:08]} Bg7 {[%emt 0:00:06]} 5. c3 {[%emt 0:00:08]} Nf6 {[%emt 0:01:20]} 6. Re1 {[%emt 0:00:10]} O-O {[%emt 0:00:25]} 7. d4 {[%emt 0:00:08]} a6 {[%emt 0:01:16]} 8. Bxc6 {[%emt 0:03:27]} dxc6 {[%emt 0:00:05]} 9. h3 {[%emt 0:03:28]} cxd4 {[%emt 0:00:44]} 10. cxd4 {[%emt 0:00:06]} c5 {[%emt 0:00:16]} 11. d5 $1 {[%emt 0:04:03] The main line 11.d5 scores better than 11.e5. B31: Sicilian: 2...Nc6 3 Bb5 g6.} b5 {[%emt 0:00:12]} 12. Nc3 {[%emt 0:03:31]} Bb7 {[%emt 0:00:16]} 13. Bf4 {[%emt 0:04:43] [#] The position is equal.} Re8 $146 {[%emt 0:00:36]} ({Predecessor:} 13... c4 14. Be5 e6 15. dxe6 fxe6 16. Bd6 Re8 17. a4 Bf8 18. Bxf8 Qxd1 19. Raxd1 Rxf8 20. axb5 axb5 21. Nxb5 Bxe4 {½-½ Fleetwood,D (2570)-Gusan,B (2555) W-ch40 q02 email 2020}) 14. Be5 {[%emt 0:03:30]} Bh6 {[%emt 0:02:10]} 15. Qc2 {[%emt 0:10:46]} Nd7 {[%emt 0:09:24]} 16. Bg3 {[%emt 0:03:04]} c4 {[%emt 0:02:29]} 17. Rad1 {[%emt 0:08:50]} Nc5 {[%emt 0:03:39]} 18. Ne5 {[%emt 0:14:23]} (18. b3 $11) 18... Rc8 {[%emt 0:04:47]} 19. Ne2 {[%emt 0:07:01]} f6 {[%emt 0:06:57]} (19... Bg7 $1 $15) 20. Ng4 $1 $11 {[%emt 0:01:40]} Bg7 {[%emt 0:02:05]} 21. Nf4 {[%emt 0:03:35] Inhibits Nd3.} Qb6 {[%emt 0:04:39]} 22. h4 {[%emt 0:10:36][%cal Bh3h4,Bh4h5,Bh5h6][%mdl 32]} a5 {[%emt 0:11:16]} 23. h5 {[%emt 0:05:31]} g5 {[%emt 0:01:30]} 24. Ne2 {[%emt 0:01:09]} e5 {[%emt 0:07:39] Repels Nd4} 25. h6 {[%emt 0:03:40]} Bf8 {[%emt 0:00:23]} 26. Nc3 {[%emt 0:01:59][%cal Oc3b5]} Red8 {[%emt 0:18:53]} (26... Rcd8 $11) 27. Re3 {[%emt 0:03:38]} (27. Nxb5 $1 $16 Nd3 28. Rxd3 cxd3 29. Qxd3) 27... Be7 {[%emt 0:01:29]} 28. Rf3 {[%emt 0:01:27][%cal Oc3b5]} Nd3 {[%emt 0:04:36]} 29. a4 {[%emt 0:03:27]} bxa4 {[%emt 0:05:27]} (29... b4 $5 {[%cal Rb4c3]} 30. Nb5 Nf4 $11) 30. Nxa4 {[%emt 0:00:33]} Qa6 {[%emt 0:00:09]} ({Better is} 30... Qd6 $14) 31. b3 $16 {[%emt 0:04:47]} Nf4 {[%emt 0:01:58]} 32. Ne3 {[%emt 0:01:15]} (32. Rc3 $16) 32... cxb3 $14 {[%emt 0:04:55]} 33. Qxb3 {[%emt 0:00:05]} Bb4 {[%emt 0:00:23]} 34. Nb2 $2 {[%emt 0:05:24]} (34. d6+ Kf8 35. Bxf4 gxf4 $15) (34. Kh2 $14 {stays ahead.}) 34... Rc3 $17 {[%emt 0:00:59]} 35. Qa2 {[%emt 0:00:08]} Kf8 {[%emt 0:02:10]} (35... Ne2+ $6 36. Kh2 Ra3 37. Qc4 $11) (35... Ra3 $1 $17 {[%cal Ra3a2]} 36. Qb1 Ne2+ 37. Kh2 Bc8) 36. Nbc4 {[%emt 0:01:05]} (36. Bxf4 $11 {keeps the balance.} gxf4 37. Nec4 Rxf3 38. gxf3) 36... Rc8 {[%emt 0:00:24]} ({Black should try} 36... Qb5 $17 {Threatens to win with ...Bc8.} 37. Bxf4 gxf4) 37. d6 $11 {[%emt 0:00:22]} Re8 {[%emt 0:06:07]} ({But not} 37... R3xc4 38. d7 Rd8 39. Nxc4 $16 (39. Qxc4 Qxc4 {[%mdl 64] Remove Defender} 40. Nxc4 Bxe4 $17)) (37... R8xc4 $2 38. Bxf4 Bxd6 39. Nxc4 Qxc4 40. Qd2 $18) (37... Bxe4 $2 38. Nxe5 fxe5 39. Qe6 Bxd6 40. Rxd6 $18) (37... Rd8 $14 38. Nxe5 fxe5 39. Bxf4 {[%mdl 64] Remove Defender} gxf4) 38. d7 {[%emt 0:00:44]} (38. Kh2 $1 $16) 38... Rd8 {[%emt 0:00:01]} 39. Bxf4 {[%emt 0:00:29]} gxf4 {[%emt 0:04:23] [#]} (39... exf4 $11 {remains equal.} 40. Nd6 Bxd6) 40. Nd6 $1 $40 {[%emt 0:00:32][%csl Gd6][%cal Ra2f7][%mdl 640] Black is in trouble. White is more active.} Rxd7 {[%emt 0:04:21] [#]} (40... Bxd6 $2 41. Qe6 Bb4 42. Qg4 $18) 41. Nef5 {[%emt 0:12:04] Intending Qe6 and mate. Really sharp!} Qc4 {[%emt 0:28:39][%mdl 8192] Prevents Qe6. A mistake that costs the game.} 42. Nxc4 {[%emt 0:11:33] Excellent horsemanship.} Rxd1+ {[%emt 0:00:05]} 43. Kh2 {[%emt 0:00:05][%cal Bg1h2,Bh2h3,Bh3g4][%mdl 32]} Rcc1 {[%emt 0:00:05][%csl Gc1][%cal Rd1h1]} 44. Kh3 {[%emt 0:09:01][%cal Oc4e5] And now Nxe5! would win.} (44. Nxa5 $2 Rh1#) 44... Bxe4 {[%emt 0:00:17] [#]} 45. Kg4 {[%emt 0:05:40]} Bd5 {[%emt 0:18:42]} (45... Bxf3+ $2 46. Kxf3 Rg1 47. Nfd6 $18 (47. Ncd6 Rc3+ 48. Ke4 Re1+ 49. Kd5 Rd1+ 50. Ke6 Rc6 $18)) 46. Qa4 $1 {[%emt 0:04:48]} Rg1 $2 {[%emt 0:00:11] [#]} (46... Bxc4 $2 47. Qc6 $18) (46... Bxf3+ 47. Kxf3 Rd3+ 48. Ke4 Rd4+ 49. Nxd4 Rxc4 {[%mdl 64] Pin}) 47. Qd7 {[%emt 0:01:26]} (47. Ng7 $142 $1 {[%csl Gg7][%cal Ra4e8]} Bxf3+ (47... Bf7 48. Nxa5) 48. Kxf3 Rc3+ 49. Kg4 Rxg2+ 50. Kf5 Rg5+ 51. Ke6 Rxg7 52. Qe8+ {[%mdl 64] Promotion} Kxe8 53. hxg7) 47... Rxg2+ {[%emt 0:00:56] [#]} (47... Bxf3+ $18 48. Kxf3 Rc3+ 49. Nce3 fxe3 50. fxe3 Rf1+ 51. Kg3 Rxf5 52. Qxf5 Rc7 53. Qxf6+ Ke8 54. Qh8+ Bf8 55. Qxe5+ Kd8) 48. Rg3 $3 {[%emt 0:00:52][%mdl 512]} Rxg3+ {[%emt 0:01:10]} (48... Bf3+ 49. Kxf3) 49. Nxg3 {[%emt 0:02:04]} (49. fxg3 $142 Bxc4 50. Ng7 (50. Qxh7 Be2+ 51. Kh3 f3 $18) 50... Kg8 51. Nh5 Be2+ 52. Kf5 Bd3+ 53. Qxd3 Kf8 54. Qd8+ Kf7 55. Nxf6 Rc8 56. Qd5+ Kf8 57. Qe6 fxg3 58. Nxh7#) 49... Bxc4 $18 {[%emt 0:00:35]} 50. Ne4 {[%emt 0:00:26]} Be7 {[%emt 0:01:00]} 51. Nd6 {[%emt 0:04:39][%csl Gd6][%cal Rd7e8]} Be2+ {[%emt 0:02:30]} (51... Rg1+ $142 52. Kf3 Bxd6) 52. f3 {[%emt 0:01:27][%csl Gd6][%cal Rd7e8]} Rg1+ {[%emt 0:02:09]} 53. Kf5 {[%emt 0:00:19][%csl Gd6][%cal Rd7e8] White mates.} Bxd6 {[%emt 0:00:32]} 54. Qxd6+ {[%emt 0:00:04]} Ke8 {[%emt 0:00:05]} 55. Qb8+ {[%emt 0:00:52] Beautiful play by Beerdsen!   Weighted Error Value: White=0.49/Black=0.54} (55. Qc6+ $142 Kd8 56. Qxf6+ Kd7 57. Qe6+ Kc7 58. Qxe5+ Kb6 59. Qd4+ Kb7 60. Qxg1 Bd3+ 61. Kxf4) 1-0

[Event "85th Tata Steel Challengers 2023"]
[Site "Wijk aan Zee"]
[Date "2023.01.27"]
[Round "11.5"]
[White "Adhiban, B.."]
[Black "Mishra, Abhimanyu"]
[Result "1/2-1/2"]
[ECO "B99"]
[WhiteElo "2610"]
[BlackElo "2559"]
[Annotator "TA"]
[PlyCount "146"]
[EventDate "2023.01.10"]
[EventType "tourn"]
[EventCountry "NED"]
[SourceTitle "playchess.com"]
[Source "ChessBase"]
[SourceQuality "1"]
[TimeControl "40/6000+30:30/3000+30:900+30"]

{[%evp 19,146,7,4,0,0,0,0,0,5,0,12,-21,-15,-32,-39,-25,0,0,0,0,0,0,0,0,0,0,0,0,0,0,0,0,49,64,72,57,50,58,51,61,118,107,118,118,115,118,161,161,158,125,125,125,125,125,125,125,125,125,125,125,125,125,315,8,8,8,8,8,8,0,0,0,8,8,8,8,8,0,8,0,0,0,0,0,0,0,0,0,0,0,0,0,0,0,0,0,0,0,0,0,0,0,0,0,0,0,0,0,0,0,0,0,0,0,0,0,0,0,0,0,0,0,0,0,0,0,0,0,0]} 1. e4 {[%emt 0:00:08]} c5 {[%emt 0:00:05]} 2. Nf3 {[%emt 0:00:06]} d6 {[%emt 0:00:12]} 3. d4 {[%emt 0:00:06]} cxd4 {[%emt 0:00:05]} 4. Nxd4 {[%emt 0:00:18]} Nf6 {[%emt 0:00:20]} 5. Nc3 {[%emt 0:00:08]} a6 {[%emt 0:00:19]} 6. Bg5 {[%emt 0:00:13]} e6 {[%emt 0:00:28]} 7. f4 {[%emt 0:00:09]} Be7 {[%emt 0:00:29]} 8. Qf3 {[%emt 0:00:13]} Qc7 {[%emt 0:00:44]} 9. O-O-O {[%emt 0:00:14]} Nbd7 {[%emt 0:00:14]} 10. Be2 {[%emt 0:01:18]} b5 {[%emt 0:03:11]} 11. a3 {[%emt 0:04:48] B99: Sicilian Najdorf: 6 Bg5 e6 7 f4 Be7 8 Qf3 Qc7 9 0-0-0 Nbd7.} Bb7 {[%emt 0:02:23]} 12. Kb1 {[%emt 0:01:12]} h6 {[%emt 0:10:28] [#]} 13. Bxf6 $146 {[%emt 0:03:50]} ({Predecessor:} 13. Bh4 O-O 14. Qe3 Rac8 15. Bf2 Nb6 16. Rhe1 Bd8 17. h3 Qb8 18. Rf1 Nc4 19. Bxc4 Rxc4 {0-1 Tsirakovsky,S (1838)-Kasabasic,D (1926) RB-2011-0-00106}) 13... Nxf6 {[%emt 0:04:02]} 14. Rhf1 {[%emt 0:04:26]} Rc8 {[%emt 0:09:07]} 15. Bd3 {[%emt 0:13:00]} Qb6 {[%emt 0:09:55]} 16. Nce2 {[%emt 0:07:32][%cal Bc3e2,Be2d4,Bd4b3][%mdl 32]} b4 {[%emt 0:08:14]} 17. a4 {[%emt 0:01:46]} Nd7 {[%emt 0:00:10]} 18. Nb3 {[%emt 0:17:22]} Nc5 {[%emt 0:09:14]} 19. Nxc5 {[%emt 0:01:34]} Qxc5 {[%emt 0:01:02]} 20. Nd4 {[%emt 0:00:57][%cal Of3g4]} O-O {[%emt 0:15:04]} (20... Qxd4 $2 21. Bb5+ axb5 22. Rxd4 $18) 21. Nb3 {[%emt 0:00:28]} Qc7 {[%emt 0:01:21]} 22. g4 {[%emt 0:02:48][%cal Oh2h4]} e5 $1 {[%emt 0:06:59]} 23. g5 {[%emt 0:01:13]} hxg5 {[%emt 0:02:04]} 24. fxg5 {[%emt 0:00:17]} Bxg5 {[%emt 0:06:50]} 25. Qh5 {[%emt 0:07:03]} Bf4 {[%emt 0:06:03] [#]} (25... f6 $11) 26. Rxf4 $1 $14 {[%emt 0:10:13][%mdl 64] Remove Defender} exf4 {[%emt 0:00:04] [#]} 27. e5 $1 {[%emt 0:00:04][%csl Gd3][%cal Rh5h7] The board is on fire. White is more active.} f5 $1 {[%emt 0:00:47]} (27... dxe5 $2 28. Qh7#) (27... g6 $2 28. Rg1 $18) 28. Bxf5 $40 {[%emt 0:02:04][%mdl 128] White is up to no good.} Rxf5 {[%emt 0:00:30]} 29. Qxf5 {[%emt 0:00:05]} Qf7 {[%emt 0:03:52]} (29... dxe5 $2 30. Rd7 $18) (29... Rf8 $1 $14 30. Qe6+ Qf7 31. Qxd6 f3) 30. Qxf7+ $16 {[%emt 0:03:20]} Kxf7 {[%emt 0:00:02]} 31. exd6 {[%emt 0:02:17][%cal Ob3c5][%mdl 4096] Endgame KRB-KRN} Bc6 {[%emt 0:07:41]} 32. Nc5 {[%emt 0:12:40]} f3 {[%emt 0:00:52]} 33. Kc1 {[%emt 0:00:48]} ({Don't play} 33. Nxa6 $6 b3 34. Nc7 (34. cxb3 f2 $11) 34... bxc2+ 35. Kxc2 Bxa4+ 36. b3 Bd7 $11) 33... a5 {[%emt 0:01:50]} 34. d7 {[%emt 0:04:50]} Rd8 {[%emt 0:00:45]} 35. Rd4 {[%emt 0:00:27]} Ke7 {[%emt 0:01:25]} 36. Kd2 {[%emt 0:00:49]} f2 {[%emt 0:00:38]} 37. Ke2 {[%emt 0:00:31]} Rf8 {[%emt 0:00:05] [#]} 38. d8=Q+ $1 {[%emt 0:01:13][%mdl 576] Deflection} Rxd8 {[%emt 0:00:03]} 39. Rxd8 {[%emt 0:00:09]} Kxd8 {[%emt 0:00:10]} 40. Kxf2 {[%emt 0:00:11] KB-KN} Ke7 $2 {[%emt 0:00:51]} (40... Kc7 $16) 41. b3 $2 {[%emt 0:59:39]} (41. Ke3 $18) 41... Kd6 $11 {[%emt 0:14:54] The position is equal.} 42. Nd3 {[%emt 0:00:00]} Be4 $1 {[%emt 0:02:12]} 43. Ke3 {[%emt 0:00:00]} Kd5 {[%emt 0:00:29]} 44. Nf4+ {[%emt 0:00:00]} Ke5 {[%emt 0:00:11]} 45. Nd3+ {[%emt 0:00:00]} Kd5 $1 {[%emt 0:01:08]} 46. Kd2 {[%emt 0:00:00]} Kd4 {[%emt 0:01:29]} 47. Nf4 {[%emt 0:00:00] Black must now prevent Ne6+.} Ke5 {[%emt 0:13:58] Against Ne6} 48. Nh3 {[%emt 0:00:00]} Bd5 {[%emt 0:02:47]} 49. Ng1 {[%emt 0:00:00]} g5 {[%emt 0:02:57][%cal Bg7g5,Bg5g4][%mdl 32]} 50. Nh3 {[%emt 0:00:00]} g4 {[%emt 0:01:11]} 51. Nf2 {[%emt 0:00:00]} Kf4 {[%emt 0:00:54]} 52. Ke2 {[%emt 0:00:00]} Bc6 {[%emt 0:03:35]} 53. Nd3+ {[%emt 0:00:00]} Ke4 {[%emt 0:00:01]} 54. Nf2+ {[%emt 0:00:00]} Kf4 {[%emt 0:00:08]} 55. Nd3+ {[%emt 0:01:34]} Ke4 {[%emt 0:00:07]} 56. Nb2 {[%emt 0:04:34]} Bd5 {[%emt 0:00:42]} 57. Nd1 {[%emt 0:00:12]} Kd4 {[%emt 0:01:28]} 58. Kd2 {[%emt 0:00:34]} (58. Ne3 $5 Be6 $8 59. Kf2 $11) 58... Be6 {[%emt 0:02:08]} 59. Nf2 {[%emt 0:01:07]} Bf5 {[%emt 0:01:02]} 60. Nh1 {[%emt 0:00:44]} Be4 {[%emt 0:02:22]} 61. Nf2 {[%emt 0:00:00]} Bf5 {[%emt 0:00:00]} 62. Nd3 {[%emt 0:00:00]} Ke4 {[%emt 0:00:00]} 63. Ke2 {[%emt 0:00:00]} Kd4 {[%emt 0:00:00] ...Kc3 would be deadly.} 64. Kd2 {[%emt 0:00:00]} Ke4 {[%emt 0:00:00]} 65. Ne1 {[%emt 0:00:00]} Kd4 {[%emt 0:00:00]} 66. Ng2 {[%emt 0:00:00]} Ke4 {[%emt 0:00:00]} 67. Ne3 {[%emt 0:01:28] Hoping for Nxf5.} Be6 {[%emt 0:00:00]} 68. Ke2 {[%emt 0:00:09]} Kd4 {[%emt 0:00:00]} 69. Kf2 {[%emt 0:00:57]} Ke4 {[%emt 0:00:00]} 70. Nf1 {[%emt 0:00:58]} Kd4 {[%emt 0:00:00]} 71. Ne3 {[%emt 0:15:25]} Ke4 {[%emt 0:12:26]} 72. Ng2 {[%emt 0:00:32]} Kd4 {[%emt 0:01:16]} 73. Ne3 {[%emt 0:01:43]} Ke4 {[%emt 0:00:36] White really could win this.   Weighted Error Value: White=0.12 (very precise) /Black=0.09 (flawless)} 1/2-1/2

[Event "85th Tata Steel Challengers 2023"]
[Site "Wijk aan Zee"]
[Date "2023.01.27"]
[Round "11.6"]
[White "Vaishali, Rameshbabu"]
[Black "L'Ami, Erwin"]
[Result "1/2-1/2"]
[ECO "C79"]
[WhiteElo "2425"]
[BlackElo "2627"]
[Annotator "TA"]
[PlyCount "123"]
[EventDate "2023.01.10"]
[EventType "tourn"]
[EventCountry "NED"]
[SourceTitle "playchess.com"]
[Source "ChessBase"]
[SourceQuality "1"]
[TimeControl "40/6000+30:30/3000+30:900+30"]

{[%evp 15,123,41,32,28,25,0,0,0,14,14,13,26,19,14,14,12,31,16,44,42,51,33,87,81,114,70,80,76,91,83,85,61,37,41,37,31,72,54,47,48,106,100,115,96,92,62,68,62,66,65,72,14,17,22,12,22,31,8,8,0,3,0,8,0,4,0,15,22,23,0,0,0,0,0,5,0,3,3,4,0,4,0,4,0,5,4,5,0,0,0,0,0,29,0,0,0,0,0,0,0,0,0,0,0,0,0,0,0,0,0]} 1. e4 {[%emt 0:00:14]} e5 {[%emt 0:00:10]} 2. Nf3 {[%emt 0:00:05]} Nc6 {[%emt 0:00:13]} 3. Bb5 {[%emt 0:00:05]} a6 {[%emt 0:00:15]} 4. Ba4 {[%emt 0:00:04]} d6 {[%emt 0:00:12]} 5. O-O {[%emt 0:00:38]} Bd7 {[%emt 0:01:46]} 6. c3 {[%emt 0:01:22]} g6 {[%emt 0:01:14]} 7. d4 {[%emt 0:00:24]} Bg7 {[%emt 0:00:13]} 8. Re1 {[%emt 0:00:21]} Nf6 $1 {[%emt 0:01:18][%mdl 4] is more profitable than 8...Nge7 at the moment.} 9. Nbd2 {[%emt 0:01:35] C79: Ruy Lopez: Steinitz-type lines with 3...a6 4 Ba4 Nf6 5 0-0 d6.} O-O {[%emt 0:01:43]} 10. Nf1 {[%emt 0:07:27]} exd4 {[%emt 0:08:00]} 11. cxd4 {[%emt 0:02:01]} Bg4 {[%emt 0:00:22]} 12. Bxc6 {[%emt 0:09:23]} bxc6 {[%emt 0:00:11]} 13. h3 {[%emt 0:00:04] [#]} Bxf3 $146 {[%emt 0:11:41]} ({Predecessor:} 13... Bd7 14. Bg5 Qb8 15. Qc2 Qb5 16. Ng3 Rfe8 17. Rac1 Rab8 18. b3 Qb4 19. Bd2 Qb6 {1-0 Vuillemin,G (2104)-Pietruske,S (2205) VW-Cup2 Gr12 email 2009}) 14. Qxf3 {[%emt 0:00:04]} Nd7 {[%emt 0:00:28]} 15. Be3 {[%emt 0:01:48]} Qb8 {[%emt 0:02:25]} 16. Qe2 {[%emt 0:13:56]} Qb5 {[%emt 0:08:59]} 17. Rac1 {[%emt 0:02:43]} Rac8 {[%emt 0:05:20]} 18. b3 {[%emt 0:15:57]} f5 {[%emt 0:04:51]} ({Better is} 18... d5 $14) 19. exf5 $16 {[%emt 0:05:48]} gxf5 {[%emt 0:01:28]} 20. Qc4+ {[%emt 0:18:17]} Rf7 {[%emt 0:09:34]} 21. Bf4 {[%emt 0:05:47]} c5 {[%emt 0:07:45]} 22. dxc5 {[%emt 0:02:10] White is more active.} Nxc5 {[%emt 0:03:08]} 23. Red1 {[%emt 0:06:17] Inhibits Nd3.} Re8 {[%emt 0:04:29]} 24. Ng3 {[%emt 0:01:20] Inhibits Re2.} Ne6 {[%emt 0:11:57]} 25. Nh5 {[%emt 0:02:23]} Bb2 {[%emt 0:09:03]} 26. Rc2 {[%emt 0:05:32]} (26. Rd5 $5 {[%cal Rd5b5]} Qxc4 27. Rxc4 $14) 26... Qxc4 {[%emt 0:06:58]} 27. Rxc4 {[%emt 0:00:03]} Ng7 {[%emt 0:04:49]} (27... Nxf4 $14 28. Nxf4 Re4) 28. Nxg7 {[%emt 0:00:38]} Kxg7 {[%emt 0:00:10]} 29. Rc6 {[%emt 0:01:54]} a5 {[%emt 0:01:07]} 30. Bd2 {[%emt 0:04:43]} Ra8 {[%emt 0:01:14]} 31. Rb1 {[%emt 0:01:25]} Bd4 {[%emt 0:00:49]} 32. Rbc1 {[%emt 0:00:48]} Bb6 {[%emt 0:01:12]} 33. Be3 {[%emt 0:01:06]} (33. Re1 $16) 33... Bxe3 $11 {[%emt 0:00:15]} 34. fxe3 {[%emt 0:00:02][%mdl 4096] Endgame KRR-KRR} Ra7 {[%emt 0:00:08]} 35. Kf2 {[%emt 0:00:19]} Kf6 {[%emt 0:01:24]} 36. Kf3 {[%emt 0:00:49]} Ke5 {[%emt 0:00:39]} 37. Rd1 {[%emt 0:00:51]} Ra8 {[%emt 0:02:04]} 38. Rdc1 {[%emt 0:00:19]} Ra7 {[%emt 0:00:09]} 39. Rd1 {[%emt 0:00:02]} Rg7 {[%emt 0:01:10]} 40. Rdc1 {[%emt 0:01:10]} Kd5 {[%emt 0:00:59]} 41. R1c2 {[%emt 0:05:46]} h6 {[%emt 0:07:35]} 42. Kf4 {[%emt 0:02:27]} Ke6 {[%emt 0:02:23]} 43. g3 {[%emt 0:03:21]} Rf7 {[%emt 0:06:36]} 44. Rd2 {[%emt 0:10:10]} Rf8 {[%emt 0:04:08]} 45. Rdc2 {[%emt 0:02:36]} Kd7 {[%emt 0:00:51]} 46. R2c3 {[%emt 0:00:42]} Rf7 {[%emt 0:05:41]} 47. Rc2 {[%emt 0:01:05]} Ke6 {[%emt 0:02:01]} 48. Rd2 {[%emt 0:01:12]} h5 {[%emt 0:05:26]} 49. Rd4 {[%emt 0:04:31]} Rg7 {[%emt 0:03:51]} 50. Rdc4 {[%emt 0:01:13]} Rh7 {[%emt 0:02:54]} 51. Kg5 {[%emt 0:02:39]} Rb7 {[%emt 0:06:52]} 52. Ra6 {[%emt 0:08:19]} Rb8 {[%emt 0:01:46]} 53. Kh4 {[%emt 0:06:13]} Rg8 {[%emt 0:02:50] [#] And now ...Kf6 would win.} 54. e4 {[%emt 0:00:48]} (54. Rxa5 $2 Kf6 55. g4 hxg4+ 56. Kg3 Rxh3+ 57. Kg2 c5 $19) 54... c5 {[%emt 0:02:43] The position is equal.} 55. exf5+ {[%emt 0:03:24]} Kxf5 {[%emt 0:00:06][%cal Og8g4] ( -> ...Rg4+!)} 56. Rf4+ {[%emt 0:00:04]} (56. Rxa5 $2 {gets mated.} Rg4+ 57. hxg4+ hxg4#) 56... Ke5 {[%emt 0:00:13]} 57. Rxa5 {[%emt 0:01:02]} Rhg7 {[%emt 0:00:51]} 58. Rf3 {[%emt 0:00:03]} Ke4 {[%emt 0:00:33]} 59. Rf4+ {[%emt 0:01:59]} Ke5 {[%emt 0:01:21]} 60. Rf3 {[%emt 0:01:00]} Ke4 {[%emt 0:01:06]} 61. Rf4+ {[%emt 0:00:00]} Ke5 {[%emt 0:00:00]} 62. Rf3 {[%emt 0:00:00] Weighted Error Value: White=0.08 (flawless) /Black=0.07 (flawless)} 1/2-1/2

[Event "85th Tata Steel Challengers 2023"]
[Site "Wijk aan Zee"]
[Date "2023.01.27"]
[Round "11.7"]
[White "Supi, Luis Paulo"]
[Black "Roebers, Eline"]
[Result "1-0"]
[ECO "A20"]
[WhiteElo "2608"]
[BlackElo "2361"]
[Annotator "TA"]
[PlyCount "55"]
[EventDate "2023.01.10"]
[EventType "tourn"]
[EventCountry "NED"]
[SourceTitle "playchess.com"]
[Source "ChessBase"]
[SourceQuality "1"]
[TimeControl "40/6000+30:30/3000+30:900+30"]

{[%evp 9,55,-4,10,5,41,33,38,4,87,87,89,87,109,99,103,104,119,125,200,193,260,252,263,260,238,147,141,119,122,131,146,64,101,95,232,224,448,485,522,516,500,510,528,537,534,511,691,648]} 1. c4 {[%emt 0:00:11]} e5 {[%emt 0:00:43]} 2. d3 {[%emt 0:00:52]} Bb4+ {[%emt 0:00:36]} 3. Nd2 {[%emt 0:01:06]} c5 {[%emt 0:00:57]} 4. Ngf3 {[%emt 0:01:44]} Nc6 {[%emt 0:01:18]} 5. g3 {[%emt 0:04:28] [#]} f5 $146 {[%emt 0:06:00]} ({Predecessor:} 5... Nge7 6. Bg2 O-O 7. O-O Ba5 8. Qc2 d6 9. a3 h6 10. e3 Bf5 11. Rb1 Qd7 {1-0 Bocharov,D (2524)-Bluebaum,M (2660) Titled Tuesday intern op 29th Sept blitz 2020 (6)}) 6. Bg2 {[%emt 0:01:08] A20: English Opening: 1...e5.} Nf6 {[%emt 0:04:20]} 7. O-O {[%emt 0:01:04]} Ba5 {[%emt 0:00:19]} 8. a3 {[%emt 0:05:51][%cal Ob2b4] White is slightly better.} O-O {[%emt 0:03:21] [#]} (8... d6 $11) 9. b4 $1 $16 {[%emt 0:02:36]} Bc7 {[%emt 0:14:11]} 10. bxc5 {[%emt 0:01:03]} Qe8 {[%emt 0:02:12]} 11. Bb2 {[%emt 0:05:34]} b6 {[%emt 0:05:06]} 12. Nh4 {[%emt 0:08:43]} f4 {[%emt 0:05:54]} 13. cxb6 {[%emt 0:08:51]} axb6 {[%emt 0:00:18]} (13... Bxb6 $16 14. gxf4 exf4) 14. e3 $18 {[%emt 0:02:14]} Kh8 {[%emt 0:12:06]} (14... Ra5 $142 15. exf4 exf4) 15. exf4 {[%emt 0:01:42]} exf4 {[%emt 0:00:18]} 16. Re1 {[%emt 0:02:17]} Qf7 {[%emt 0:00:50]} 17. Ndf3 {[%emt 0:02:29] Black must now prevent Ng5.} Ra5 {[%emt 0:02:27] Repels Ng5} 18. Nd4 {[%emt 0:12:10]} Nxd4 {[%emt 0:08:48]} 19. Bxd4 {[%emt 0:00:14]} d5 {[%emt 0:00:17]} 20. cxd5 {[%emt 0:07:31]} (20. Qb1 $16) 20... Nxd5 {[%emt 0:04:51]} 21. Rc1 {[%emt 0:03:27] White is more active.} Bb7 {[%emt 0:12:47] [#] Loses the game.} (21... Bd6 $16) 22. Qg4 $1 {[%emt 0:06:11][%cal Oh4f5] Strongly threatening Nf5!} Bd8 $2 {[%emt 0:03:30] [#]} (22... Bc8 {is a better defense.} 23. Bxd5 Rxd5 24. Qxg7+ Qxg7 25. Bxg7+ Kxg7) 23. Nf5 $1 {[%emt 0:02:44][%cal Rd4g7,Bh4f5,Bf5d6,Bd6c4][%mdl 608] Deflection. White is clearly winning.} Nf6 {[%emt 0:05:14] [#]} (23... Bf6 24. Nd6) 24. Nd6 $1 {[%emt 0:05:23][%mdl 64] Double Attack} Qg8 {[%emt 0:03:53] [#]} 25. Bxf6 {[%emt 0:01:30]} (25. Qxf4 Bxg2 26. Kxg2 Qd5+ 27. Kg1 Rxa3 $16) 25... Bxg2 {[%emt 0:00:46]} 26. Bxd8 {[%emt 0:00:58]} (26. Kxg2 Bxf6 27. Rc8 (27. Qxf4 Rxa3 28. Qe4 Ra2 $16) (27. gxf4 Qd5+ 28. Ne4 Rxa3 $11) 27... Ra8 $16) 26... Rxd8 {[%emt 0:00:37]} 27. Nc4 {[%emt 0:03:28][%cal Oc4a5]} ({Weaker is} 27. Qxf4 Rf8 $18) (27. Kxg2 Rxd6 28. Rc8 (28. Qxf4 Rxd3 29. Rc7 Rd8 $16) 28... Rd8 29. Rxd8 Qxd8 30. Qxf4 h6 $18) (27. gxf4 Bd5 28. Nc4 Ra6 $16) 27... h5 {[%emt 0:04:17]} 28. Qg6 {[%emt 0:01:27] A superb game by Supi.   Weighted Error Value: White=0.10 (very precise) /Black=0.51} 1-0